[Event "*** Titled Tuesday 3|2 Blitz"]
[Site "Chess.com"]
[Date "2015.02.24"]
[Round "3"]
[White "Argente"]
[Black "HansCoolNiemann"]
[Result "1/2-1/2"]
[WhiteElo "2191"]
[BlackElo "1844"]
[TimeControl "180+2"]
[EndTime "11:36:33 PST"]
[Termination "Game drawn by repetition"]

1. d4 {[%clk 0:03:00]} 1... Nf6 {[%clk 0:02:57.7]} 2. Nf3 {[%clk 0:03:00.8]}
2... g6 {[%clk 0:02:58.8]} 3. Nbd2 {[%clk 0:03:01.6]} 3... Bg7 {[%clk
0:03:00.4]} 4. e4 {[%clk 0:03:03.1]} 4... d6 {[%clk 0:03:02]} 5. c3 {[%clk
0:03:02.6]} 5... O-O {[%clk 0:03:02.7]} 6. Bd3 {[%clk 0:03:03.4]} 6... e5 {[%clk
0:03:03.9]} 7. O-O {[%clk 0:03:02.9]} 7... Nc6 {[%clk 0:03:00.3]} 8. h3 {[%clk
0:03:03.2]} 8... Re8 {[%clk 0:02:58.8]} 9. Re1 {[%clk 0:03:03.4]} 9... d5 {[%clk
0:02:58.4]} 10. Nxe5 {[%clk 0:02:37.1]} 10... Nxe5 {[%clk 0:02:56.2]} 11. dxe5
{[%clk 0:02:37]} 11... Rxe5 {[%clk 0:02:57.1]} 12. Nf3 {[%clk 0:02:33.9]} 12...
Re8 {[%clk 0:02:54.6]} 13. e5 {[%clk 0:02:29]} 13... Nd7 {[%clk 0:02:55]} 14.
Bg5 {[%clk 0:02:26.5]} 14... f6 {[%clk 0:02:52.1]} 15. Bh4 {[%clk 0:02:07.1]}
15... g5 {[%clk 0:02:51.8]} 16. exf6 {[%clk 0:02:05.1]} 16... Rxe1+ {[%clk
0:02:43.8]} 17. Qxe1 {[%clk 0:02:05]} 17... Bxf6 {[%clk 0:02:36.7]} 18. Bg3
{[%clk 0:01:47.2]} 18... Nc5 {[%clk 0:02:36.9]} 19. Bc2 {[%clk 0:01:38.5]} 19...
g4 {[%clk 0:02:34.1]} 20. hxg4 {[%clk 0:01:36.3]} 20... Bxg4 {[%clk 0:02:36]}
21. Ne5 {[%clk 0:01:36.6]} 21... Be6 {[%clk 0:02:25.7]} 22. Qe3 {[%clk
0:01:30.7]} 22... Qe7 {[%clk 0:02:24.4]} 23. Re1 {[%clk 0:01:28.4]} 23... Re8
{[%clk 0:02:23.2]} 24. Nf3 {[%clk 0:01:12.5]} 24... c6 {[%clk 0:02:19]} 25. Qf4
{[%clk 0:00:53.1]} 25... Qg7 {[%clk 0:02:10.2]} 26. Qd6 {[%clk 0:00:50]} 26...
Be7 {[%clk 0:02:08.2]} 27. Qc7 {[%clk 0:00:36.9]} 27... Bf6 {[%clk 0:02:05.5]}
28. Qd6 {[%clk 0:00:32.3]} 28... Qe7 {[%clk 0:01:57]} 29. Nd4 {[%clk 0:00:25.4]}
29... Kh8 {[%clk 0:01:33.9]} 30. Nf5 {[%clk 0:00:21.5]} 30... Qxd6 {[%clk
0:01:33.7]} 31. Nxd6 {[%clk 0:00:23.4]} 31... Re7 {[%clk 0:01:32.3]} 32. Kf1
{[%clk 0:00:20.7]} 32... h5 {[%clk 0:01:26]} 33. Nf5 {[%clk 0:00:19.5]} 33...
Bxf5 {[%clk 0:01:23.2]} 34. Bxf5 {[%clk 0:00:21.4]} 34... Rxe1+ {[%clk
0:01:23.4]} 35. Kxe1 {[%clk 0:00:23.3]} 35... Na4 {[%clk 0:01:24.8]} 36. Bc8
{[%clk 0:00:22]} 36... b6 {[%clk 0:01:14.1]} 37. Bd7 {[%clk 0:00:21.4]} 37...
Nxb2 {[%clk 0:01:11.8]} 38. Bxc6 {[%clk 0:00:21.5]} 38... Bxc3+ {[%clk
0:01:11.4]} 39. Ke2 {[%clk 0:00:23.1]} 39... d4 {[%clk 0:01:12.5]} 40. Be4
{[%clk 0:00:18.9]} 40... Kg7 {[%clk 0:01:10.8]} 41. Bb8 {[%clk 0:00:17.3]} 41...
a5 {[%clk 0:01:10.3]} 42. g3 {[%clk 0:00:13.1]} 42... b5 {[%clk 0:01:10.1]} 43.
Bc7 {[%clk 0:00:12.4]} 43... a4 {[%clk 0:01:09.5]} 44. f4 {[%clk 0:00:12.8]}
44... b4 {[%clk 0:01:09.2]} 45. Be5+ {[%clk 0:00:11.7]} 45... Kf7 {[%clk
0:01:07.9]} 46. f5 {[%clk 0:00:13.6]} 46... d3+ {[%clk 0:01:08.1]} 47. Bxd3
{[%clk 0:00:13.1]} 47... Bxe5 {[%clk 0:01:10]} 48. Be4 {[%clk 0:00:13.3]} 48...
b3 {[%clk 0:01:08.3]} 49. axb3 {[%clk 0:00:14]} 49... axb3 {[%clk 0:01:09.9]}
50. Bd5+ {[%clk 0:00:15.1]} 50... Kf6 {[%clk 0:01:11.3]} 51. Bxb3 {[%clk
0:00:16.6]} 51... Kxf5 {[%clk 0:01:12.9]} 52. Kf3 {[%clk 0:00:16.1]} 52... Nd3
{[%clk 0:01:11.5]} 53. Bc2 {[%clk 0:00:16.5]} 53... Kg5 {[%clk 0:01:01.4]} 54.
Bxd3 {[%clk 0:00:17]} 54... Bd6 {[%clk 0:01:03.3]} 55. Kg2 {[%clk 0:00:17.8]}
55... Kg4 {[%clk 0:01:02.1]} 56. Be2+ {[%clk 0:00:18.9]} 56... Kg5 {[%clk
0:01:02.1]} 57. Bxh5 {[%clk 0:00:20.8]} 57... Kxh5 {[%clk 0:01:03.4]} 58. g4+
{[%clk 0:00:22.3]} 58... Kg5 {[%clk 0:01:05.1]} 59. Kf2 {[%clk 0:00:23.5]} 59...
Be5 {[%clk 0:01:04.4]} 60. Ke2 {[%clk 0:00:25.4]} 60... Bf6 {[%clk 0:01:06.3]}
61. Kd3 {[%clk 0:00:27.3]} 61... Ba1 {[%clk 0:01:07.7]} 62. Kc4 {[%clk
0:00:28.3]} 62... Bh8 {[%clk 0:01:09.6]} 63. Kd3 {[%clk 0:00:30.2]} 63... Be5
{[%clk 0:01:10.7]} 64. Kc4 {[%clk 0:00:32.1]} 64... Bg3 {[%clk 0:01:12.3]} 65.
Kd3 {[%clk 0:00:34]} 65... Bh4 {[%clk 0:01:14.1]} 66. Kc4 {[%clk 0:00:35.9]}
66... Bf2 {[%clk 0:01:15.5]} 67. Kd3 {[%clk 0:00:37.8]} 67... Ba7 {[%clk
0:01:16.5]} 68. Kc4 {[%clk 0:00:39.7]} 68... Kf6 {[%clk 0:01:17.7]} 69. Kd3
{[%clk 0:00:41.6]} 69... Kg6 {[%clk 0:01:18.8]} 70. Ke4 {[%clk 0:00:43.5]} 70...
Bb8 {[%clk 0:01:20.1]} 71. Kf3 {[%clk 0:00:45.1]} 71... Bd6 {[%clk 0:01:21.2]}
72. Ke4 {[%clk 0:00:47]} 72... Kg5 {[%clk 0:01:22.1]} 73. Kd5 {[%clk 0:00:48.9]}
73... Bf4 {[%clk 0:01:22.8]} 74. Ke4 {[%clk 0:00:50.1]} 74... Bg3 {[%clk
0:01:24.3]} 75. Kf3 {[%clk 0:00:51.2]} 75... Bh4 {[%clk 0:01:25.2]} 76. Ke4
{[%clk 0:00:53.1]} 76... Bf2 {[%clk 0:01:26.1]} 77. Kd5 {[%clk 0:00:55]} 77...
Ba7 {[%clk 0:01:27.8]} 78. Ke4 {[%clk 0:00:56.5]} 78... Bb8 {[%clk 0:01:29.4]}
79. Kf3 {[%clk 0:00:58.4]} 79... Bh2 {[%clk 0:01:30.8]} 80. Ke4 {[%clk 0:00:59]}
80... Bb8 {[%clk 0:01:32.7]} 81. Kd5 {[%clk 0:01:00.9]} 81... Bh2 {[%clk
0:01:33.5]} 82. Ke4 {[%clk 0:01:02.8]} 82... Bg1 {[%clk 0:01:34.7]} 83. Kd3
{[%clk 0:01:04.7]} 83... Ba7 {[%clk 0:01:36.6]} 84. Ke4 {[%clk 0:01:06.6]} 84...
Bb8 {[%clk 0:01:38]} 85. Kd5 {[%clk 0:01:08.5]} 85... Bf4 {[%clk 0:01:38.9]} 86.
Ke4 {[%clk 0:01:10.4]} 86... Bc1 {[%clk 0:01:40.3]} 87. Kf3 {[%clk 0:01:12.3]}
87... Bb2 {[%clk 0:01:42.2]} 88. Ke4 {[%clk 0:01:14.2]} 88... Bh8 {[%clk
0:01:43.6]} 89. Kd3 {[%clk 0:01:16.1]} 89... Ba1 {[%clk 0:01:45.5]} 90. Ke4
{[%clk 0:01:18]} 90... Bh8 {[%clk 0:01:47.2]} 91. Kd5 {[%clk 0:01:19.9]} 91...
Ba1 {[%clk 0:01:48.8]} 92. Ke4 {[%clk 0:01:21.8]} 92... Bh8 {[%clk 0:01:50.3]}
93. Kd3 {[%clk 0:01:22.8]} 93... Bb2 {[%clk 0:01:51.2]} 94. Ke4 {[%clk
0:01:24.7]} 94... Bg7 {[%clk 0:01:52.5]} 95. Kd5 {[%clk 0:01:26.6]} 95... Ba1
{[%clk 0:01:54.4]} 96. Ke4 {[%clk 0:01:28.2]} 96... Bg7 {[%clk 0:01:55.9]} 97.
Kd3 {[%clk 0:01:30.1]} 97... Bh8 {[%clk 0:01:57.7]} 98. Kc4 {[%clk 0:01:32]}
98... Bf6 {[%clk 0:01:59.6]} 99. Kd5 {[%clk 0:01:33.9]} 99... Bg7 {[%clk
0:02:01.5]} 100. Ke4 {[%clk 0:01:35.8]} 100... Bh8 {[%clk 0:02:03.3]} 1/2-1/2

[Event "*** Titled Tuesday 3|2 Blitz"]
[Site "Chess.com"]
[Date "2015.02.24"]
[Round "4"]
[White "lukas_111111"]
[Black "Kacparov"]
[Result "0-1"]
[WhiteElo "2129"]
[BlackElo "2430"]
[TimeControl "180+2"]
[EndTime "11:43:04 PST"]
[Termination "Kacparov won by resignation"]

1. e4 {[%clk 0:02:17.6]} 1... c5 {[%clk 0:02:58.6]} 2. Nf3 {[%clk 0:02:17]} 2...
e6 {[%clk 0:02:59.9]} 3. d4 {[%clk 0:02:17.3]} 3... cxd4 {[%clk 0:03:01.8]} 4.
Nxd4 {[%clk 0:02:18.5]} 4... a6 {[%clk 0:03:03.2]} 5. c4 {[%clk 0:02:19]} 5...
Nf6 {[%clk 0:03:03.7]} 6. Nc3 {[%clk 0:02:20]} 6... Qc7 {[%clk 0:03:03.6]} 7.
Be2 {[%clk 0:02:21]} 7... b6 {[%clk 0:03:04.8]} 8. Be3 {[%clk 0:02:19.4]} 8...
Bb7 {[%clk 0:03:06]} 9. f3 {[%clk 0:02:20.8]} 9... d6 {[%clk 0:03:05.7]} 10. O-O
{[%clk 0:02:20.9]} 10... Nbd7 {[%clk 0:03:06.6]} 11. Qd2 {[%clk 0:02:22.4]}
11... Be7 {[%clk 0:03:07.9]} 12. Rfc1 {[%clk 0:02:23.6]} 12... O-O {[%clk
0:03:09]} 13. a4 {[%clk 0:02:25]} 13... Rfc8 {[%clk 0:03:07.9]} 14. a5 {[%clk
0:02:24.5]} 14... bxa5 {[%clk 0:03:05.4]} 15. Nb3 {[%clk 0:02:24.9]} 15... Rab8
{[%clk 0:03:06.3]} 16. Nxa5 {[%clk 0:02:25.5]} 16... Ba8 {[%clk 0:03:07.6]} 17.
Na4 {[%clk 0:01:56.8]} 17... Nc5 {[%clk 0:03:04.5]} 18. Nxc5 {[%clk 0:01:54.8]}
18... dxc5 {[%clk 0:03:06.4]} 19. Bf4 {[%clk 0:01:53.8]} 19... Rxb2 {[%clk
0:02:59.5]} 20. Qxb2 {[%clk 0:01:51.7]} 20... Qxf4 {[%clk 0:03:00.4]} 21. Bf1
{[%clk 0:01:47.2]} 21... Bd6 {[%clk 0:02:58.7]} 22. h3 {[%clk 0:01:21.4]} 22...
Be5 {[%clk 0:02:58.8]} 23. Qb6 {[%clk 0:01:08.4]} 23... Bd4+ {[%clk 0:02:23.7]}
24. Kh1 {[%clk 0:01:08.4]} 24... Nh5 {[%clk 0:02:21.3]} 0-1

[Event "*** Titled Tuesday 3|2 Blitz"]
[Site "Chess.com"]
[Date "2015.02.24"]
[Round "4"]
[White "Zlatan56"]
[Black "GeorgMeier"]
[Result "0-1"]
[WhiteElo "2478"]
[BlackElo "2664"]
[TimeControl "180+2"]
[EndTime "11:43:09 PST"]
[Termination "GeorgMeier won by resignation"]

1. e4 {[%clk 0:02:56.1]} 1... e6 {[%clk 0:02:58.5]} 2. d4 {[%clk 0:02:56.4]}
2... d5 {[%clk 0:02:59.7]} 3. Nd2 {[%clk 0:02:57]} 3... dxe4 {[%clk 0:03:01.2]}
4. Nxe4 {[%clk 0:02:57.3]} 4... Nd7 {[%clk 0:03:03.1]} 5. Nf3 {[%clk 0:02:56.7]}
5... Ngf6 {[%clk 0:03:04.6]} 6. Bd3 {[%clk 0:02:53.1]} 6... c5 {[%clk
0:03:05.1]} 7. O-O {[%clk 0:02:42.3]} 7... Nxe4 {[%clk 0:03:06.3]} 8. Bxe4
{[%clk 0:02:42.5]} 8... Nf6 {[%clk 0:03:08.2]} 9. Bg5 {[%clk 0:02:42.4]} 9...
cxd4 {[%clk 0:03:09.1]} 10. Nxd4 {[%clk 0:02:38.4]} 10... Be7 {[%clk 0:03:10.2]}
11. Bf3 {[%clk 0:02:39.2]} 11... O-O {[%clk 0:03:11.2]} 12. Nb3 {[%clk
0:02:39.2]} 12... Qc7 {[%clk 0:03:08]} 13. Qd2 {[%clk 0:02:33.4]} 13... Rd8
{[%clk 0:02:54.6]} 14. Qf4 {[%clk 0:02:18.6]} 14... Qxc2 {[%clk 0:02:15.8]} 15.
Rab1 {[%clk 0:02:14]} 15... Qf5 {[%clk 0:02:03.8]} 16. Qxf5 {[%clk 0:02:11.8]}
16... exf5 {[%clk 0:02:05.7]} 17. Na5 {[%clk 0:02:11.9]} 17... h6 {[%clk
0:01:59]} 18. Rfe1 {[%clk 0:02:03]} 18... Bb4 {[%clk 0:01:46.8]} 19. Bxf6 {[%clk
0:01:45.5]} 19... gxf6 {[%clk 0:01:47.2]} 0-1

[Event "*** Titled Tuesday 3|2 Blitz"]
[Site "Chess.com"]
[Date "2015.02.24"]
[Round "4"]
[White "GedoGluperd"]
[Black "FabianEnglert"]
[Result "1-0"]
[WhiteElo "2238"]
[BlackElo "2228"]
[TimeControl "180+2"]
[EndTime "11:43:40 PST"]
[Termination "GedoGluperd won by resignation"]

1. Nf3 {[%clk 0:03:00]} 1... d5 {[%clk 0:02:58.7]} 2. g3 {[%clk 0:03:01.4]} 2...
Nc6 {[%clk 0:02:57.5]} 3. Bg2 {[%clk 0:03:01.1]} 3... e5 {[%clk 0:02:57.4]} 4.
d3 {[%clk 0:03:02.5]} 4... Bd6 {[%clk 0:02:55]} 5. O-O {[%clk 0:03:03.2]} 5...
Nge7 {[%clk 0:02:48.6]} 6. c4 {[%clk 0:03:03.6]} 6... d4 {[%clk 0:02:47.8]} 7.
Na3 {[%clk 0:03:01.1]} 7... O-O {[%clk 0:02:46]} 8. Nc2 {[%clk 0:03:02]} 8... a5
{[%clk 0:02:44.5]} 9. b3 {[%clk 0:03:02]} 9... h6 {[%clk 0:02:40]} 10. Rb1
{[%clk 0:03:02.4]} 10... f5 {[%clk 0:02:34.1]} 11. Nd2 {[%clk 0:03:03.7]} 11...
Ng6 {[%clk 0:02:30.2]} 12. a3 {[%clk 0:03:03.6]} 12... e4 {[%clk 0:02:18.1]} 13.
dxe4 {[%clk 0:03:01]} 13... f4 {[%clk 0:02:19.2]} 14. Nf3 {[%clk 0:02:54.5]}
14... fxg3 {[%clk 0:01:56.4]} 15. hxg3 {[%clk 0:02:54.4]} 15... Be5 {[%clk
0:01:54.6]} 16. b4 {[%clk 0:02:43.2]} 16... Bg4 {[%clk 0:01:48.9]} 17. b5 {[%clk
0:02:39.8]} 17... Bxf3 {[%clk 0:01:37]} 18. exf3 {[%clk 0:02:37.2]} 18... d3
{[%clk 0:01:37.8]} 19. bxc6 {[%clk 0:02:35.2]} 19... dxc2 {[%clk 0:01:39]} 20.
Qxc2 {[%clk 0:02:34.9]} 20... bxc6 {[%clk 0:01:40.2]} 21. f4 {[%clk 0:02:29.9]}
21... Bd4 {[%clk 0:01:36.6]} 22. e5 {[%clk 0:02:30.9]} 22... Ne7 {[%clk
0:01:33.8]} 23. c5 {[%clk 0:02:28.2]} 23... Nf5 {[%clk 0:01:26.5]} 24. Bb2
{[%clk 0:02:07.6]} 24... Nxg3 {[%clk 0:01:01.2]} 25. Qb3+ {[%clk 0:02:06.3]} 1-0

[Event "*** Titled Tuesday 3|2 Blitz"]
[Site "Chess.com"]
[Date "2015.02.24"]
[Round "4"]
[White "FrankieJay"]
[Black "AlexanderL"]
[Result "0-1"]
[WhiteElo "2210"]
[BlackElo "2507"]
[TimeControl "180+2"]
[EndTime "11:44:07 PST"]
[Termination "AlexanderL won by resignation"]

1. e4 {[%clk 0:03:00]} 1... e6 {[%clk 0:02:58.1]} 2. d4 {[%clk 0:03:00.8]} 2...
d5 {[%clk 0:02:59]} 3. Nc3 {[%clk 0:03:02.2]} 3... Bb4 {[%clk 0:02:59.6]} 4. e5
{[%clk 0:03:03.1]} 4... b6 {[%clk 0:03:00.3]} 5. a3 {[%clk 0:03:03.6]} 5...
Bxc3+ {[%clk 0:03:00.6]} 6. bxc3 {[%clk 0:03:05.5]} 6... Qd7 {[%clk 0:02:59.1]}
7. a4 {[%clk 0:03:01.8]} 7... Ba6 {[%clk 0:02:59.4]} 8. Bxa6 {[%clk 0:02:57.8]}
8... Nxa6 {[%clk 0:03:00.1]} 9. Qd3 {[%clk 0:02:59.4]} 9... Nb8 {[%clk
0:02:59.9]} 10. a5 {[%clk 0:03:00.7]} 10... Nc6 {[%clk 0:03:00.9]} 11. axb6
{[%clk 0:02:54.1]} 11... cxb6 {[%clk 0:03:02.8]} 12. Nf3 {[%clk 0:02:53.4]}
12... Nge7 {[%clk 0:03:02.4]} 13. O-O {[%clk 0:02:52.8]} 13... h6 {[%clk
0:02:58.3]} 14. Ba3 {[%clk 0:02:51.5]} 14... O-O {[%clk 0:02:58.8]} 15. Nd2
{[%clk 0:02:46.2]} 15... Rfc8 {[%clk 0:02:58.1]} 16. f4 {[%clk 0:02:31.7]} 16...
Na5 {[%clk 0:02:53.9]} 17. Bb4 {[%clk 0:02:21]} 17... Nc4 {[%clk 0:02:54.3]} 18.
Nxc4 {[%clk 0:02:08.6]} 18... Rxc4 {[%clk 0:02:53.1]} 19. Bxe7 {[%clk
0:02:04.9]} 19... Qxe7 {[%clk 0:02:52.6]} 20. f5 {[%clk 0:02:06.5]} 20... exf5
{[%clk 0:02:47.8]} 21. Rxf5 {[%clk 0:02:02.5]} 21... Rac8 {[%clk 0:02:47]} 22.
Qf3 {[%clk 0:01:55.6]} 22... Rxc3 {[%clk 0:02:44.7]} 23. Qxd5 {[%clk 0:01:52.7]}
23... Rxc2 {[%clk 0:02:42.1]} 24. Raf1 {[%clk 0:01:53.3]} 24... Qe6 {[%clk
0:02:43.2]} 25. Qf3 {[%clk 0:01:37.6]} 25... Qc4 {[%clk 0:02:34.5]} 26. d5
{[%clk 0:01:28.9]} 26... Rc1 {[%clk 0:02:28.8]} 27. Rxf7 {[%clk 0:01:12.2]}
27... Qd4+ {[%clk 0:02:29.1]} 28. Kh1 {[%clk 0:01:13.2]} 28... Rxf1+ {[%clk
0:02:29.2]} 29. Qxf1 {[%clk 0:01:15.1]} 29... Qe3 {[%clk 0:02:29]} 30. d6 {[%clk
0:00:43.4]} 30... Rc1 {[%clk 0:02:29.6]} 31. d7 {[%clk 0:00:43.3]} 31... Rxf1+
{[%clk 0:02:30.5]} 32. Rxf1 {[%clk 0:00:45.2]} 32... Qd3 {[%clk 0:02:32.1]} 0-1

[Event "*** Titled Tuesday 3|2 Blitz"]
[Site "Chess.com"]
[Date "2015.02.24"]
[Round "4"]
[White "CraiggoryC"]
[Black "GasconJR"]
[Result "0-1"]
[WhiteElo "1978"]
[BlackElo "2262"]
[TimeControl "180+2"]
[EndTime "11:45:12 PST"]
[Termination "GasconJR won by resignation"]

1. e4 {[%clk 0:03:00]} 1... c5 {[%clk 0:02:57.8]} 2. Nf3 {[%clk 0:03:01]} 2...
d6 {[%clk 0:02:57.4]} 3. d4 {[%clk 0:03:02.4]} 3... cxd4 {[%clk 0:02:55.4]} 4.
Nxd4 {[%clk 0:03:04.1]} 4... Nf6 {[%clk 0:02:54.7]} 5. Nc3 {[%clk 0:03:04.4]}
5... a6 {[%clk 0:02:56.1]} 6. Be2 {[%clk 0:03:05.1]} 6... e5 {[%clk 0:02:56.7]}
7. Nb3 {[%clk 0:03:05.3]} 7... Be7 {[%clk 0:02:57.8]} 8. Be3 {[%clk 0:03:06.5]}
8... Be6 {[%clk 0:02:58.1]} 9. f4 {[%clk 0:03:06.2]} 9... exf4 {[%clk
0:02:54.3]} 10. Bxf4 {[%clk 0:03:07]} 10... O-O {[%clk 0:02:54.8]} 11. g4 {[%clk
0:03:02.2]} 11... Ne8 {[%clk 0:02:51.9]} 12. Qd2 {[%clk 0:02:53]} 12... Bh4+
{[%clk 0:02:50.9]} 13. Bg3 {[%clk 0:02:46.9]} 13... Bg5 {[%clk 0:02:50.2]} 14.
Bf4 {[%clk 0:02:31.9]} 14... Bxf4 {[%clk 0:02:49.9]} 15. Qxf4 {[%clk 0:02:32.8]}
15... Qh4+ {[%clk 0:02:50.7]} 16. Qg3 {[%clk 0:02:27]} 16... Qxg3+ {[%clk
0:02:51]} 17. hxg3 {[%clk 0:02:28.9]} 17... Nc6 {[%clk 0:02:51.5]} 18. O-O-O
{[%clk 0:02:12.8]} 18... h6 {[%clk 0:02:49.3]} 19. Nd4 {[%clk 0:02:04.2]} 19...
Nxd4 {[%clk 0:02:49.6]} 20. Rxd4 {[%clk 0:02:04.8]} 20... Rc8 {[%clk 0:02:28.5]}
21. Nd5 {[%clk 0:01:44.7]} 21... Bxd5 {[%clk 0:02:26.6]} 22. exd5 {[%clk
0:01:37.1]} 22... Nf6 {[%clk 0:02:26.4]} 23. Bd3 {[%clk 0:01:19.7]} 23... Rfe8
{[%clk 0:02:25.8]} 24. Kd2 {[%clk 0:01:03.3]} 24... Re5 {[%clk 0:02:18.3]} 25.
c4 {[%clk 0:01:04]} 25... Rce8 {[%clk 0:02:08]} 26. Rf4 {[%clk 0:00:26.7]} 26...
Re3 {[%clk 0:02:04.2]} 27. Rh3 {[%clk 0:00:27.6]} 27... Nd7 {[%clk 0:01:59.2]}
28. b3 {[%clk 0:00:18.1]} 28... Nc5 {[%clk 0:01:59.2]} 29. Bf1 {[%clk
0:00:15.7]} 29... Re1 {[%clk 0:01:56.3]} 30. Rh2 {[%clk 0:00:15.1]} 30... Ra1
{[%clk 0:01:56.3]} 31. Kc3 {[%clk 0:00:14.3]} 31... a5 {[%clk 0:01:47.2]} 32. a3
{[%clk 0:00:14.1]} 32... Rxa3 {[%clk 0:01:46.2]} 33. Bd3 {[%clk 0:00:13.5]}
33... Rxb3+ {[%clk 0:01:46.4]} 0-1

[Event "*** Titled Tuesday 3|2 Blitz"]
[Site "Chess.com"]
[Date "2015.02.24"]
[Round "4"]
[White "1random"]
[Black "pedromartinez91"]
[Result "0-1"]
[WhiteElo "2019"]
[BlackElo "2124"]
[TimeControl "180+2"]
[EndTime "11:45:13 PST"]
[Termination "pedromartinez91 won by checkmate"]

1. e4 {[%clk 0:03:00]} 1... e6 {[%clk 0:02:59.1]} 2. d4 {[%clk 0:02:59.3]} 2...
d5 {[%clk 0:03:00.2]} 3. Nd2 {[%clk 0:03:00.9]} 3... Nf6 {[%clk 0:03:00]} 4. e5
{[%clk 0:03:01.9]} 4... Ne4 {[%clk 0:03:01.3]} 5. Bd3 {[%clk 0:03:02.2]} 5...
Nxd2 {[%clk 0:03:02.1]} 6. Bxd2 {[%clk 0:03:04.1]} 6... c5 {[%clk 0:03:03.5]} 7.
c3 {[%clk 0:03:03.6]} 7... Qb6 {[%clk 0:03:04.6]} 8. Bc1 {[%clk 0:02:25]} 8...
Nc6 {[%clk 0:03:03.4]} 9. Nf3 {[%clk 0:02:25.7]} 9... Bd7 {[%clk 0:02:59.2]} 10.
O-O {[%clk 0:02:26.2]} 10... cxd4 {[%clk 0:02:58.8]} 11. cxd4 {[%clk 0:01:59.9]}
11... Nxd4 {[%clk 0:02:59.3]} 12. Nxd4 {[%clk 0:01:39]} 12... Qxd4 {[%clk
0:02:59.4]} 13. Be3 {[%clk 0:01:40.5]} 13... Qa4 {[%clk 0:02:49.8]} 14. Bc2
{[%clk 0:01:37.9]} 14... Qa5 {[%clk 0:02:48.4]} 15. f4 {[%clk 0:01:22.4]} 15...
Bc5 {[%clk 0:02:48.6]} 16. Qd3 {[%clk 0:01:20.9]} 16... Rc8 {[%clk 0:02:46.3]}
17. Rac1 {[%clk 0:01:15.6]} 17... Bxe3+ {[%clk 0:02:47.3]} 18. Qxe3 {[%clk
0:01:17.5]} 18... Qc5 {[%clk 0:02:48.9]} 19. Qxc5 {[%clk 0:01:13.9]} 19... Rxc5
{[%clk 0:02:50.4]} 20. Bd3 {[%clk 0:01:04.3]} 20... b6 {[%clk 0:02:47.5]} 21. b4
{[%clk 0:00:55.7]} 21... Rxc1 {[%clk 0:02:47.9]} 22. Rxc1 {[%clk 0:00:57.6]}
22... Kd8 {[%clk 0:02:49.3]} 23. Kf2 {[%clk 0:00:54.1]} 23... f6 {[%clk
0:02:49.9]} 24. Ke3 {[%clk 0:00:31.6]} 24... f5 {[%clk 0:02:51]} 25. Kd4 {[%clk
0:00:32.4]} 25... Rg8 {[%clk 0:02:52.3]} 26. h4 {[%clk 0:00:30.2]} 26... g6
{[%clk 0:02:51.2]} 27. g3 {[%clk 0:00:27.4]} 27... h6 {[%clk 0:02:52.4]} 28. Rh1
{[%clk 0:00:26.4]} 28... g5 {[%clk 0:02:53.5]} 29. hxg5 {[%clk 0:00:27.2]} 29...
hxg5 {[%clk 0:02:54.6]} 30. Rh5 {[%clk 0:00:13.8]} 30... gxf4 {[%clk 0:02:55.2]}
31. gxf4 {[%clk 0:00:15.7]} 31... Rg2 {[%clk 0:02:55.9]} 32. Bb1 {[%clk
0:00:13.4]} 32... Rd2+ {[%clk 0:02:54.6]} 33. Kc3 {[%clk 0:00:11.1]} 33... Rf2
{[%clk 0:02:54.6]} 34. Rh4 {[%clk 0:00:12.5]} 34... Kc7 {[%clk 0:02:53.8]} 35.
a3 {[%clk 0:00:13.7]} 35... Rf3+ {[%clk 0:02:52.5]} 36. Kb2 {[%clk 0:00:12]}
36... Ba4 {[%clk 0:02:53.5]} 37. Rh7+ {[%clk 0:00:09.8]} 37... Bd7 {[%clk
0:02:54.5]} 38. Rh4 {[%clk 0:00:09.7]} 38... d4 {[%clk 0:02:55.8]} 39. Kc2
{[%clk 0:00:09.7]} 39... Bc6 {[%clk 0:02:56.5]} 40. Kb2 {[%clk 0:00:10.2]} 40...
Be4 {[%clk 0:02:57.1]} 41. Ba2 {[%clk 0:00:11.6]} 41... d3 {[%clk 0:02:56.7]}
42. Bxe6 {[%clk 0:00:12.1]} 42... Rf2+ {[%clk 0:02:58.1]} 43. Kc1 {[%clk
0:00:12]} 43... d2+ {[%clk 0:02:58.4]} 44. Kd1 {[%clk 0:00:13.6]} 44... Bf3+
{[%clk 0:02:58.8]} 45. Kc2 {[%clk 0:00:14.9]} 45... d1=Q+ {[%clk 0:02:59.5]} 46.
Kc3 {[%clk 0:00:16.8]} 46... Rc2+ {[%clk 0:03:00.1]} 47. Kb3 {[%clk 0:00:18.7]}
47... Rc6+ {[%clk 0:03:00.2]} 48. Kb2 {[%clk 0:00:18.5]} 48... Qd2+ {[%clk
0:03:00.5]} 49. Kb3 {[%clk 0:00:18.4]} 49... Bd1# {[%clk 0:03:01.5]} 0-1

[Event "*** Titled Tuesday 3|2 Blitz"]
[Site "Chess.com"]
[Date "2015.02.24"]
[Round "4"]
[White "ViennaRocket"]
[Black "Carolina-moon"]
[Result "1-0"]
[WhiteElo "2193"]
[BlackElo "1923"]
[TimeControl "180+2"]
[EndTime "11:45:18 PST"]
[Termination "ViennaRocket won on time"]

1. d4 {[%clk 0:03:00]} 1... f5 {[%clk 0:02:57.7]} 2. Qd3 {[%clk 0:02:59.3]} 2...
d5 {[%clk 0:02:57.5]} 3. g4 {[%clk 0:02:59.2]} 3... fxg4 {[%clk 0:02:54.9]} 4.
h3 {[%clk 0:03:00.2]} 4... Nf6 {[%clk 0:02:51]} 5. hxg4 {[%clk 0:02:57]} 5...
Bxg4 {[%clk 0:02:51.4]} 6. Bh3 {[%clk 0:02:57.6]} 6... Qd7 {[%clk 0:02:51]} 7.
f3 {[%clk 0:02:58.4]} 7... Bxh3 {[%clk 0:02:51.1]} 8. Nxh3 {[%clk 0:02:59.3]}
8... Nc6 {[%clk 0:02:43.6]} 9. Bf4 {[%clk 0:02:55.2]} 9... e6 {[%clk 0:02:37.4]}
10. Ng5 {[%clk 0:02:46.2]} 10... O-O-O {[%clk 0:02:37]} 11. c3 {[%clk
0:02:37.3]} 11... h6 {[%clk 0:02:30.9]} 12. Bg3 {[%clk 0:02:16.3]} 12... Bd6
{[%clk 0:02:16.5]} 13. Bxd6 {[%clk 0:02:16.2]} 13... hxg5 {[%clk 0:02:15.5]} 14.
Rxh8 {[%clk 0:02:11.1]} 14... Rxh8 {[%clk 0:02:16.1]} 15. Bg3 {[%clk 0:02:12.1]}
15... Rh1+ {[%clk 0:02:12.5]} 16. Kf2 {[%clk 0:01:59.3]} 16... Nh5 {[%clk
0:01:56.9]} 17. Qg6 {[%clk 0:01:31.7]} 17... Nxg3 {[%clk 0:01:49]} 18. Kxg3
{[%clk 0:01:33]} 18... Qd6+ {[%clk 0:01:45.1]} 19. Kf2 {[%clk 0:01:34.4]} 19...
Qh2+ {[%clk 0:01:24.9]} 20. Ke3 {[%clk 0:01:35]} 20... Qf4+ {[%clk 0:01:21.9]}
21. Kd3 {[%clk 0:01:32.5]} 21... Rd1+ {[%clk 0:01:18.8]} 22. Kc2 {[%clk
0:01:33.1]} 22... Rc1+ {[%clk 0:00:41.7]} 23. Kb3 {[%clk 0:01:32.5]} 23... Qd6
{[%clk 0:00:24.7]} 24. a3 {[%clk 0:01:24.9]} 24... Na5+ {[%clk 0:00:21.3]} 25.
Ka2 {[%clk 0:01:26]} 25... Qc6 {[%clk 0:00:18.4]} 26. Nd2 {[%clk 0:01:24.4]}
26... Rc2 {[%clk 0:00:16]} 27. Qxc2 {[%clk 0:01:23.4]} 1-0